Workbook

Sheet Documentation
A1: K303 - Project 4
A2: Spring 2020
A4: Username: | C4: RASHAR | E4: Class Number: | G4: 7123
A5: Prepared by: | C5: Raunav Sharma | E5: Lab Instructor's Name: | G5: Taryn Malher
A6: Today is: | C6: =TODAY() -> 2020-06-12

Sheet Problem 1
A1: In the purple shaded cell(s) below, use simple cell references (e.g., =D16) to point to the calculations specified. There should be no formulas or functions in the purple shaded cells.
B2: Total water used | C2: =B39 -> 8 | E2: Total revenue | F2: =B41 -> 283.875
B3: Cost for Milk Used | C3: =G20 -> 45.6 | E3: Total cost | F3: =B42 -> 118.46
E4: Objective cell | F4: =Profit -> 165.415
A6: Espresso Drinks | B6: Espresso (oz) | C6: Milk (oz) | D6: Foam (oz) | E6: Water (oz) | G6: Retail price
A7: Cappuccino (6oz) | B7: 2 | C7: 2 | D7: 2 | E7: 0 | G7: 3.75
A8: Café latte (10oz) | B8: 3 | C8: 6 | D8: 1 | E8: 0 | G8: 3.75
A9: Espresso (1oz) | B9: 1 | C9: 0 | D9: 0 | E9: 0 | G9: 2.5
A10: Americano (8oz) | B10: 4 | C10: 0 | D10: 0 | E10: 4 | G10: 4.75
A12: Ingredient cost per oz | B12: 0.3 | C12: 0.16 | D12: 0.16 | E12: 0.02
A19: Espresso cost per oz | B19: 0.3
A20: Milk cost per oz | B20: 0.16 | F20: Cost for milk used | G20: =B20*B37 -> 45.6 | H20: =_xlfn.FORMULATEXT(G20) -> =B20*B37
A21: Foam cost per oz | B21: 0.16
A22: Water cost per oz | B22: 0.02
B24: Cappuccino (6oz) | C24: Café latte (10 oz) | D24: Espresso (1oz) | E24: Americano (8oz)
A25: Espresso per drink | B25: 2 | C25: 3 | D25: 1 | E25: 4
A26: Milk per drink | B26: 2 | C26: 6 | D26: 0 | E26: 0
A27: Foam per drink | B27: 2 | C27: 1 | D27: 0 | E27: 0
A28: Water per drink | B28: 0 | C28: 0 | D28: 0 | E28: 4
A29: Unit selling price | B29: 3.75 | C29: 3.75 | D29: 2.5 | E29: 4.75
A31: Drinks Produced | B31: 31.5 | C31: 37 | D31: 7 | E31: 2
B32: <= | C32: <= | D32: <= | E32: <=
A33: Max Demand | B33: 47 | C33: 37 | D33: 7 | E33: 2
B35: Resources Used | D35: Resources Available
A36: Espresso (oz) | B36: =SUMPRODUCT($B$31:$E$31,B25:E25) -> 189 | C36: <= | D36: 400
A37: Milk (oz) | B37: =SUMPRODUCT($B$31:$E$31,B26:E26) -> 285 | C37: <= | D37: 300
A38: Foam (oz) | B38: 100 | C38: <= | D38: 100
A39: Water (oz) | B39: 8 | C39: <= | D39: 500
A41: Revenue | B41: =SUMPRODUCT(B31:E31,B29:E29) -> 283.875
A42: Cost | B42: =SUMPRODUCT(B36:B39,B19:B22) -> 118.46
A43: Profit | B43: =B41-B42 -> 165.415

Sheet Problem 2
A1: In the purple shaded cell(s) below, use simple cell references (e.g., =D16) to point to the calculations specified. There should be no formulas or functions in the purple shaded cells.
B2: # of drinks included in catering package | C2: =F45 -> 51 | E2: Total cost | F2: =B47 -> 158.565
B3: # of food items included in package | C3: =F46 -> 40 | E3: Objective cell | F3: =B48 -> 302.05
B4: Total items included in package | C4: =C40 -> 91
A6: ignore | B6: Catering type | C6: # of People
B7: Lunch | C7: 40
A9: Expanded Menu | B9: Cost | C9: Retail Price | D9: profit | F9: # of People | G9: # of Items
A10: Cappuccino (6oz) | B10: 1.24 | C10: 3.75 | D10: =C10-B10 -> 2.51 | F10: 10 | G10: 25
A11: Café latte (10oz) | B11: 2.02 | C11: 3.75 | D11: =C11-B11 -> 1.73 | F11: 20 | G11: 47
A12: Espresso (1oz) | B12: 0.3 | C12: 2.5 | D12: 2.2 | F12: 30 | G12: 69
A13: Americano (8oz) | B13: 1.28 | C13: 4.75 | D13: 3.47 | F13: 40 | G13: 91
A14: Egg and cheese English muffin | B14: 2.25 | C14: 5.71 | D14: 3.46 | F14: 50 | G14: 113
A15: Cookie | B15: 0.78 | C15: 3 | D15: 2.22
A16: Cinnamon roll | B16: 1 | C16: 3.75 | D16: 2.75
A17: Quiche | B17: 3.42 | C17: 5.75 | D17: 2.33
E18: Per-person minimums
F19: Breakfast | G19: Lunch | H19: Coffee break
E20: Cappuccino (6oz) | F20: 0.2 | G20: 0.1 | H20: 0.25
E21: Café latte (10oz) | F21: 0.2 | G21: 0.1 | H21: 0.25
E22: Espresso (1oz) | F22: 0.2 | G22: 0.1 | H22: 0.25
E23: Americano (8oz) | F23: 0.2 | G23: 0.1 | H23: 0.25
E24: Egg and cheese English muffin | F24: 0.2 | G24: 0.1 | H24: 0
E25: Cookie | F25: 0 | G25: 0.15 | H25: 0.5
E26: Cinnamon roll | F26: 0.2 | G26: 0.1 | H26: 0.5
E27: Quiche | F27: 0.2 | G27: 0.6 | H27: 0
C31: #of items | E31: Required #of items
A32: Cappuccino (6oz) | B32: 3.75 | C32: 1 | D32: >= | E32: =IF($B$7="Breakfast",10*F20,IF($B$7="Lunch",10*G20,IF($B$7="Coffee break",10*H20," "))) -> 1
A33: Café latte (10oz) | B33: 3.75 | C33: 1 | D33: >= | E33: =IF($B$7="Breakfast",10*F21,IF($B$7="Lunch",10*G21,IF($B$7="Coffee break",10*H21," "))) -> 1
A34: Espresso (1oz) | B34: 2.5 | C34: 1 | D34: >= | E34: 1
A35: Americano (8oz) | B35: 4.75 | C35: 48 | D35: >= | E35: 1
A36: Egg and cheese English muffin | B36: 5.71 | C36: 31.5 | D36: >= | E36: 1
A37: Cookie | B37: 3 | C37: 1.5 | D37: >= | E37: 1.5
A38: Cinnamon roll | B38: 3.75 | C38: 1 | D38: >= | E38: 1
A39: Quiche | B39: 5.75 | C39: 6 | D39: >= | E39: 6
C40: =SUM(C32:C39) -> 91 | D40: = | E40: =VLOOKUP(C7,F10:G14,2,FALSE) -> 91
C42: =SUM(C32:C35) -> 51 | D42: >= | E42: =C7 -> 40
C43: =SUM(C36:C39) -> 40 | D43: >= | E43: =C7 -> 40
E45: no of drinks | F45: =SUM(C32:C35) -> 51
A46: Revenue | B46: =SUMPRODUCT(C32:C39,C10:C17) -> 460.615 | E46: no of food items | F46: =SUM(C36:C39) -> 40
A47: Cost | B47: =SUMPRODUCT(B10:B17,C32:C39) -> 158.565
A48: Profit | B48: =B46-B47 -> 302.05

Sheet Problem 2 Form Control
B1: Catering type | D1: Combo box Cell Link | E1: 2
B2: Breakfast
B3: Lunch
B4: Coffee break

Sheet Problem 3
A1: In the purple shaded cell(s) below, use simple cell references (e.g., =D16) to point to the calculations specified. There should be no formulas or functions in the purple shaded cells.
B2: Objective cell | C2: =objective -> 44
A7: Model Calculations
A9: PREFERENCES [1 = most preferred] | B9: Sunday 6AM - 3PM | C9: Sunday 3PM - 12AM | D9: Monday 6AM - 3PM | E9: Monday 3PM - 12AM | F9: Tuesday 6AM - 3PM | G9: Tuesday 3PM - 12AM | H9: Wednesday 6AM - 3PM | I9: Wednesday 3PM - 12AM
A10: Charles | B10: 1 | C10: 5 | D10: 8 | E10: 4 | F10: 2 | G10: 3 | H10: 6 | I10: 7
A11: Sebastian | B11: 8 | C11: 3 | D11: 4 | E11: 1 | F11: 5 | G11: 7 | H11: 6 | I11: 2
A12: Moran | B12: 4 | C12: 8 | D12: 5 | E12: 6 | F12: 2 | G12: 7 | H12: 3 | I12: 1
A13: Henry | B13: 6 | C13: 7 | D13: 4 | E13: 2 | F13: 1 | G13: 3 | H13: 8 | I13: 5
A14: John | B14: 1 | C14: 7 | D14: 5 | E14: 4 | F14: 3 | G14: 6 | H14: 8 | I14: 2
A15: Irene | B15: 5 | C15: 6 | D15: 8 | E15: 4 | F15: 3 | G15: 7 | H15: 2 | I15: 1
A18: ASSIGNMENTS | B18: Sunday 6AM - 3PM | C18: Sunday 3PM - 12AM | D18: Monday 6AM - 3PM | E18: Monday 3PM - 12AM | F18: Tuesday 6AM - 3PM | G18: Tuesday 3PM - 12AM | H18: Wednesday 6AM - 3PM | I18: Wednesday 3PM - 12AM | J18: Total Shifts | L18: Required Shifts
A19: Charles | B19: 1 | C19: 0 | D19: 0 | E19: 0 | F19: 0 | G19: 1 | H19: 0 | I19: 0 | J19: =SUM(B19:I19) -> 2 | K19: <= | L19: 3
A20: Sebastian | B20: 0 | C20: 1 | D20: 0 | E20: 1 | F20: 0 | G20: 0 | H20: 0 | I20: 1 | J20: =SUM(B20:I20) -> 3 | K20: <= | L20: 3
A21: Moran | B21: 0 | C21: 0 | D21: 1 | E21: 0 | F21: 1 | G21: 0 | H21: 1 | I21: 0 | J21: 3 | K21: <= | L21: 3
A22: Henry | B22: 0 | C22: 0 | D22: 0 | E22: 1 | F22: 0 | G22: 1 | H22: 0 | I22: 0 | J22: 2 | K22: <= | L22: 3
A23: John | B23: 1 | C23: 0 | D23: 1 | E23: 0 | F23: 0 | G23: 0 | H23: 0 | I23: 1 | J23: 3 | K23: <= | L23: 3
A24: Irene | B24: 0 | C24: 1 | D24: 0 | E24: 0 | F24: 1 | G24: 0 | H24: 1 | I24: 0 | J24: 3 | K24: <= | L24: 3
A25: Total Baristas | B25: =SUM(B19:B24) -> 2 | C25: =SUM(C19:C24) -> 2 | D25: 2 | E25: 2 | F25: 2 | G25: 2 | H25: 2 | I25: 2
B26: = | C26: = | D26: = | E26: = | F26: = | G26: = | H26: = | I26: =
A27: Required Baristas | B27: 2 | C27: 2 | D27: 2 | E27: 2 | F27: 2 | G27: 2 | H27: 2 | I27: 2
B29: Sunday | C29: Monday | D29: Tuesday | E29: Wednesday
A30: Charles | B30: =SUM(B19:C19) -> 1 | C30: =SUM(D19:E19) -> 0 | D30: =SUM(F19:G19) -> 1 | E30: =SUM(H19:I19) -> 0
A31: Sebastian | B31: =SUM(B20:C20) -> 1 | C31: =SUM(D20:E20) -> 1 | D31: =SUM(F20:G20) -> 0 | E31: =SUM(H20:I20) -> 1
A32: Moran | B32: 0 | C32: 1 | D32: 1 | E32: 1
A33: Henry | B33: 0 | C33: 1 | D33: 1 | E33: 0
A34: John | B34: 1 | C34: 1 | D34: 0 | E34: 1
A35: Irene | B35: 1 | C35: 0 | D35: 1 | E35: 1
A41: objective | B41: =SUMPRODUCT(Variable,B10:I15) -> 44
A42: Analysis
A43: ASSIGNED SHIFTS' PREFERENCES | B43: Sunday 6AM - 3PM | C43: Sunday 3PM - 12AM | D43: Monday 6AM - 3PM | E43: Monday 3PM - 12AM | F43: Tuesday 6AM - 3PM | G43: Tuesday 3PM - 12AM | H43: Wednesday 6AM - 3PM | I43: Wednesday 3PM - 12AM
A44: Charles | B44: =IF(B19=1,VLOOKUP(B10,B10:I15,1,FALSE), 0) -> 1 | C44: =IF(C19=1,VLOOKUP(C10,C10:J15,1,FALSE), 0) -> 0 | D44: 0 | E44: 0 | F44: 0 | G44: 3 | H44: 0 | I44: 0
A45: Sebastian | B45: =IF(B20=1,VLOOKUP(B11,B11:I16,1,FALSE), 0) -> 0 | C45: =IF(C20=1,VLOOKUP(C11,C11:J16,1,FALSE), 0) -> 3 | D45: =IF(D20=1,VLOOKUP(D11,D11:K16,1,FALSE), 0) -> 0 | E45: =IF(E20=1,VLOOKUP(E11,E11:L16,1,FALSE), 0) -> 1 | F45: =IF(F20=1,VLOOKUP(F11,F11:M16,1,FALSE), 0) -> 0 | G45: =IF(G20=1,VLOOKUP(G11,G11:N16,1,FALSE), 0) -> 0 | H45: =IF(H20=1,VLOOKUP(H11,H11:O16,1,FALSE), 0) -> 0 | I45: =IF(I20=1,VLOOKUP(I11,I11:P16,1,FALSE), 0) -> 2
A46: Moran | B46: 0 | C46: 0 | D46: 5 | E46: 0 | F46: 2 | G46: 0 | H46: 3 | I46: 0
A47: Henry | B47: 0 | C47: 0 | D47: 0 | E47: 2 | F47: 0 | G47: 3 | H47: 0 | I47: 0
A48: John | B48: 1 | C48: 0 | D48: 5 | E48: 0 | F48: 0 | G48: 0 | H48: 0 | I48: 2
A49: Irene | B49: 0 | C49: 6 | D49: 0 | E49: 0 | F49: 3 | G49: 0 | H49: 2 | I49: 0
A50: sum | B50: =SUM(B44:B49) -> 2 | C50: =SUM(C44:C49) -> 9 | D50: 10 | E50: 3 | F50: 5 | G50: 6 | H50: 5 | I50: 4
A52: PREFERENCE LEVEL | B52: COUNT OF SHIFTS SCHEDULED | D52: DISTRIBUTION OF SCHEDULE PREFERENCES | H52: OVERALL SHIFT QUALITY
A53: 1 | B53: =COUNTIF($B$44:$I$49,1) -> 3 | H53: Best (lowest misery index) | I53: =INDEX(B43:I43,MATCH(MIN(B50:I50),B50:I50,0)) -> Sunday 6AM - 3PM
A54: 2 | B54: =COUNTIF($B$44:$I$49,2) -> 5 | H54: Worst (highest misery index) | I54: =INDEX(B43:I43,MATCH(MAX(B50:I50),B50:I50,0)) -> Monday 6AM - 3PM
A55: 3 | B55: =COUNTIF($B$44:$I$49,3) -> 5
A56: 4 | B56: =COUNTIF($B$44:$I$49,4) -> 0
A57: 5 | B57: =COUNTIF($B$44:$I$49,5) -> 2
A58: 6 | B58: =COUNTIF($B$44:$I$49,6) -> 1
A59: 7 | B59: =COUNTIF($B$44:$I$49,7) -> 0
A60: 8 | B60: =COUNTIF($B$44:$I$49,8) -> 0
... 1 more rows

Sheet Questions
B2: P1: Product Mix
A3: Question 1 | B3: Out of the four resources, which one is limiting our ability to produce more drinks?
B4: Foam
B6: P2: Product Mix with Form Controls
A7: Question 2 | B7: When Problem 2 catering parameters are set to lunch for 40 people, we see that Americanos are where Solver says we should create the most drinks. Why is Solver choosing Americanos rather than distributing the allocation evenly among all drinks?
B8: It has the highest profit out of the drinks
A10: Question 3 | B10: What would happen if the price of espresso were to decrease by $2.00?
B11: The overall profit of this package would decrease by the number of espressos chosen to be made, times $2.
A13: Question 4 | B13: If the # of items required in a catering package (also referred to in the instructions as the "conservative estimate") were to increase by one, where parameters are lunch and 40 people still, how would that affect overall profit?
B14: Increase profit by $3.47
B16: P3: Shift Assignments
A17: Question 5 | B17: What would be an accurate reading of the histogram of scheduled preferences?
B18: For the most part, we are able to schedule baristas for one of their top 3 preferences.

Sheet Options (hidden)
A1: Question1 | B1: Question2 | C1: Question3 | D1: Question4 | E1: Question5 | F1: Question6
A2: Click here to select an answer | B2: Click here to select an answer | C2: Click here to select an answer | D2: Click here to select an answer | E2: Click here to select an answer | F2: Click here to select an answer
A3: Espresso | B3: It's the last of the drinks available to produce | C3: There would be no espressos in the package anymore because it would no longer be profitable. | D3: Increase profit by $3.47 | E3: Budget | F3: For the most part, we are able to schedule baristas for one of their top 3 preferences.
A4: Milk | B4: It has the highest retail value out of the drinks | C4: The overall profit of this package would decrease by the number of espressos chosen to be made, times $2. | D4: Increase cost by $3.47 | E4: Demand | F4: It is rare that we can give baristas their preferred shifts.
A5: Foam | B5: It has the highest profit out of the drinks | C5: There would be more cinnamon rolls, as Solver would reallocate distribution towards the food items. | D5: Decrease profit by $7.00 | E5: Spoilage | F5: Some baristas were scheduled for their least preferred shift.
A6: Water | B6: After Solver fulfills the constraints, it allocates at random | C6: We would need to rerun Solver again, since the optimal solution could possibly have changed. | D6: Increase profit by $7.00 | E6: Sugar | F6: There is no discernible pattern to the results; we may as well have assigned shifts randomly.

Sheet .
D4: Please Enable Macros
... 1 more rows

Sheet Times (hidden)
A1: Username | B1: Class # | C1: Semester | D1: GP # | E1: Started | F1: Stopped | G1: Pts Earned | H1: Excel Version | I1: Documenation Username | J1: OS Version | K1: File Size On Open | L1: File Size On Close | M1: Filepath On Open | N1: Filepath On Close
A2: RASHAR | B2: Proj4 | C2: Spring 2020 | D2: 4 | E2: 2020-06-11T18:47:34 | F2: 2020-06-11T22:35:47 | H2: 16.37 | I2: RASHAR | J2: Macintosh (Intel) Version 10.15.4 (Build 19E287) | K2: 0 | L2: 0 | M2: /Users/raunavsharma/Downloads\K303_SU20_Project4.xlsm | N2: /Users/raunavsharma/Downloads\K303_SU20_Project4.xlsm
A3: RASHAR | B3: Proj4 | C3: Spring 2020 | D3: 4 | E3: 2020-06-12T14:01:14 | F3: 2020-06-12T19:30:51 | H3: 16.37 | I3: RASHAR | J3: Macintosh (Intel) Version 10.15.4 (Build 19E287) | K3: 0 | L3: 0 | M3: /Users/raunavsharma/Downloads\K303_SU20_Project4.xlsm | N3: /Users/raunavsharma/Downloads\K303_SU20_Project4.xlsm
... 1 more rows

Sheet IDSheet (hidden)
E2: Spring 2020
E3: 4
D4: Username | E4: RASHAR
D5: Classname | E5: Proj4
D12: # of Attempts | E12: 2
... 1 more rows
